bitfinex/quotes_ETHUSD_20260209
["timestamp","ask_amount","ask_price","bid_price","bid_amount"]
[1770658735698,0.97877395,2125.6,2124.0,1.17698431]
[1770658736188,0.97877395,2125.6,2124.0,1.24375909]
[1770658737573,0.97877395,2125.4,2123.8,0.06677478]
[1770658737778,0.97877395,2125.1,2123.3,1.24416016]
[1770658737978,0.97877395,2125.1,2123.5,1.17729888]
[1770658738172,0.97877395,2125.1,2123.6,0.06677478]
[1770658738385,0.97877395,2125.1,2123.7,1.17716819]
[1770658738605,0.97877395,2125.1,2124.2,0.001]
[1770658739675,4.46347058,2125.0,2124.2,0.001]
[1770658739864,0.97877395,2124.9,2124.2,0.001]
[1770658740068,0.97877395,2124.9,2123.2,1.17742494]
[1770658740490,0.06677478,2124.3,2122.7,0.001]
[1770658740687,0.97827395,2124.0,2122.3,1.24569509]
[1770658741014,4.26627395,2124.8,2122.9,0.06677478]
[1770658741219,4.26627395,2124.8,2123.1,0.06677478]
[1770658741220,0.97827395,2124.7,2123.1,0.06677478]
[1770658741495,3.288,2124.8,2123.8,0.06677478]
[1770658741795,4.46462052,2124.8,2124.1,0.06677478]
[1770658742094,4.46462052,2124.8,2124.7,0.06677478]
[1770658742299,1.17822318,2125.5,2125.2,0.06677478]
[1770658742505,1.17819383,2125.5,2125.0,0.06677478]
[1770658742668,0.002,2125.5,2125.2,0.06677478]
[1770658743006,1.17599989,2125.9,2125.0,0.06677478]
[1770658743205,0.98127395,2126.3,2125.4,0.06677478]
[1770658743372,10.23714664,2126.9,2125.8,0.06677478]
[1770658743373,1.17547489,2126.8,2125.8,0.06677478]
[1770658744671,1.17547489,2126.8,2125.4,1.24299103]
[1770658744872,1.17547489,2126.8,2124.8,0.06677478]
[1770658744873,1.04504873,2126.7,2125.1,1.17638127]
[1770658745101,1.04504873,2126.7,2124.8,1.17654425]
[1770658745400,1.04504873,2126.3,2124.5,1.17673034]
[1770658745699,2.15424647,2125.9,2124.2,1.17691002]
[1770658745902,5.44224647,2125.9,2124.2,1.17691002]
[1770658746068,5.44224647,2125.9,2124.3,0.06677478]
[1770658746272,0.97827395,2125.8,2124.3,0.06677478]
[1770658747284,0.97827395,2125.8,2124.7,0.06677478]
[1770658747503,4.46397252,2125.9,2124.9,0.06677478]
[1770658747704,1.1757513,2126.3,2125.1,0.06677478]
[1770658748280,1.1757513,2126.3,2124.9,1.24325827]
[1770658749083,0.97827395,2126.2,2124.8,1.17657875]
[1770658749287,0.97827395,2126.2,2124.5,0.06677478]
[1770658749574,0.97827395,2126.0,2124.3,1.17681948]
[1770658749781,0.97827395,2125.8,2124.2,4.70752719]
[1770658750074,0.97827395,2125.6,2123.9,0.06677478]
[1770658750272,1.04504873,2125.6,2123.9,1.17707443]
[1770658750701,1.04504873,2125.6,2123.8,1.17712319]
[1770658751005,1.04504873,2125.6,2123.8,1.17712191]
[1770658751006,0.97827395,2125.1,2123.8,1.17712191]
[1770658751204,0.97827395,2125.1,2124.9,0.001]
[1770658751403,0.97827395,2125.1,2123.5,0.06677478]
[1770658751582,0.97827395,2125.1,2123.8,1.17711026]
[1770658751905,1.17647058,2125.0,2124.6,0.001]
[1770658752121,1.47815235,2125.6,2124.6,0.001]
[1770658752122,1.1761385,2125.6,2124.6,0.001]
[1770658752407,0.97827395,2125.5,2124.6,0.001]
[1770658752778,4.4631385,2125.6,2124.6,0.001]
[1770658753199,0.97827395,2125.5,2124.6,0.001]
[1770658753909,2.15452312,2125.4,2124.6,0.001]
[1770658754107,2.15452312,2125.4,2123.8,1.17813428]
[1770658754288,0.97827395,2125.3,2123.8,1.17813428]
[1770658754479,0.97827395,2125.3,2123.8,0.001]
[1770658754682,0.97827395,2125.3,2123.0,4.71017985]
[1770658754683,11.21492059,2124.5,2123.0,4.71017985]
[1770658755004,3.287,2124.4,2123.1,1.17749832]
[1770658755180,3.287,2124.4,2123.1,1.17747549]
[1770658755381,10.23714664,2125.0,2123.4,4.77612618]
[1770658755382,3.287,2124.8,2123.4,4.77612618]
[1770658755581,4.27401985,2124.8,2123.3,1.17738841]
[1770658755831,10.23714664,2124.6,2122.4,4.71143644]
[1770658756029,10.23714664,2124.6,2122.4,1.24464584]
[1770658756030,0.98701985,2124.3,2122.4,1.24464584]
[1770658756179,0.98701985,2124.3,2122.4,1.24466481]
[1770658756517,0.98701985,2124.3,2122.8,0.06677478]
[1770658756721,0.98701985,2124.3,2122.6,0.06677478]
[1770658757011,1.99577878,2124.2,2122.4,1.24466481]
[1770658757222,0.98701985,2124.2,2122.4,1.24466481]
[1770658757909,0.98701985,2123.8,2122.3,0.001]
[1770658758088,0.98701985,2123.5,2122.3,0.001]
[1770658758505,1.05379463,2123.5,2122.3,0.001]
[1770658758684,0.98701985,2123.5,2122.3,0.001]
[1770658759297,1.05379463,2123.5,2122.3,0.001]
[1770658760007,2.15513101,2123.4,2122.3,0.001]
[1770658760788,1.17735706,2123.4,2122.3,0.001]
[1770658761507,2.15513101,2123.4,2122.3,0.001]
[1770658761710,0.97777395,2123.3,2122.3,0.001]
[1770658761897,1.17735706,2123.4,2122.3,0.001]
[1770658762094,4.70942827,2123.5,2122.3,0.001]
[1770658764217,1.1770799,2123.9,2122.5,1.1778563]
[1770658764218,3.289,2123.9,2122.5,1.1778563]
[1770658764389,4.26677395,2123.9,2122.4,1.24464318]
[1770658764586,4.26677395,2123.9,2122.4,1.24468445]
[1770658764812,3.289,2123.9,2122.4,1.24468445]
[1770658765026,3.289,2123.9,2122.6,0.06677478]
[1770658765223,0.002,2123.6,2122.6,0.06677478]
[1770658766597,0.002,2123.6,2122.7,1.17774532]
[1770658767021,0.002,2123.6,2122.5,0.001]
[1770658767219,0.002,2123.6,2122.5,1.17884583]
[1770658767390,0.002,2123.6,2122.6,1.17779578]
[1770658768388,0.002,2123.6,2122.7,0.06677478]
[1770658768589,0.002,2123.6,2122.8,1.17768984]
[1770658769924,1.1786794,2124.7,2123.4,0.06677478]
[1770658770236,1.1786794,2124.7,2123.2,0.06677478]
[1770658770523,2.15745335,2124.7,2123.0,0.06677478]
[1770658770733,2.15745335,2124.7,2123.1,1.17752343]
[1770658770895,0.97877395,2124.6,2123.0,1.17754891]
[1770658771298,1.1786794,2124.7,2123.2,0.06677478]
[1770658772799,0.002,2124.7,2123.6,0.06677478]
[1770658774639,0.002,2124.7,2123.3,1.17741251]
[1770658774842,0.97877395,2124.6,2123.0,0.06677478]
[1770658775058,0.002,2124.7,2123.0,0.06677478]
[1770658775059,0.002,2124.7,2124.1,0.06677478]
[1770658775199,4.70473902,2125.6,2124.1,0.06677478]
[1770658775633,1.17612353,2125.7,2124.8,0.06677478]
[1770658775998,1.17612353,2125.7,2124.2,0.06677478]
[1770658776208,1.17612353,2125.7,2124.4,0.06677478]
[1770658776495,4.70385612,2126.0,2124.6,0.06677478]
[1770658776910,1.17791721,2126.1,2125.1,0.06677478]
[1770658776911,0.002,2126.1,2125.1,0.06677478]
[1770658777109,0.92408713,2126.7,2125.1,0.06677478]
[1770658777110,2.0990648,2127.7,2126.1,0.06677478]
[1770658777319,2.0990648,2127.7,2126.3,0.06677478]
[1770658777625,1.17497767,2127.7,2126.7,0.06677478]
[1770658778000,1.17793041,2127.8,2126.4,0.06677478]
[1770658778198,0.00832974,2129.0,2127.0,0.06677478]
[1770658778435,5.68878542,2128.8,2126.6,0.16917478]
[1770658778608,0.92408713,2128.7,2126.9,0.06677478]
[1770658778802,0.92408713,2128.5,2126.6,0.06677478]
[1770658778998,0.92408713,2128.3,2126.8,1.17543785]
[1770658779202,0.92408713,2128.3,2126.9,1.17540562]
[1770658779529,3.289,2128.4,2127.1,0.06677478]
[1770658779910,3.289,2128.4,2126.8,4.70187891]
[1770658779911,4.21308713,2128.4,2126.8,1.17545924]
[1770658780112,4.21308713,2128.4,2126.7,1.175496]
[1770658780435,0.99086191,2128.1,2126.1,0.06677478]
[1770658780610,0.92408713,2127.8,2125.6,4.87357228]
[1770658780806,2.0990648,2127.7,2126.1,0.06677478]
[1770658781222,0.92408713,2127.6,2126.1,0.06677478]
[1770658782234,0.92408713,2127.6,2125.9,1.1759671]
[1770658782435,1.17497767,2127.7,2126.3,0.06677478]
[1770658782936,4.6999107,2127.9,2126.4,1.17569601]
[1770658783816,4.6999107,2127.9,2126.1,4.77014499]
[1770658783817,0.92408713,2127.8,2126.1,4.77014499]
[1770658784022,0.92408713,2127.8,2126.3,1.17574531]
[1770658784920,1.17497767,2127.7,2126.3,1.17574531]
[1770658785237,1.17497767,2127.7,2126.2,4.76978]
[1770658785238,2.0990648,2127.7,2126.2,1.24254866]
[1770658785447,1.17497767,2127.7,2126.4,0.06677478]
[1770658785614,1.17497767,2127.7,2126.6,0.06677478]
[1770658787359,4.6999107,2128.1,2126.7,1.17553016]
[1770658787650,4.6999107,2128.1,2126.8,0.06677478]
[1770658789251,0.003,2128.5,2127.2,0.06677478]
[1770658789555,1.17757062,2128.5,2127.5,0.06677478]
[1770658789721,2.10165775,2128.5,2126.9,1.17541962]
[1770658790509,1.17757062,2128.5,2127.2,0.06677478]
[1770658791061,0.00832974,2129.0,2127.8,0.06677478]
[1770658791271,0.00832974,2129.0,2127.2,0.21660052]
[1770658791272,1.18260998,2129.0,2127.2,0.21660052]
[1770658791419,0.92508713,2128.9,2126.9,0.1024]
[1770658791750,0.92508713,2128.7,2127.2,4.70100114]
[1770658791946,1.18260998,2129.0,2127.7,1.17497753]
[1770658792454,1.18260998,2129.0,2127.5,4.76668548]
[1770658792455,0.002,2128.1,2127.3,4.76751881]
[1770658792657,0.002,2128.1,2127.7,1.17496964]
[1770658793234,0.002,2128.1,2127.3,1.1751986]
[1770658793440,0.002,2128.1,2127.6,0.06677478]
[1770658793630,4.83596252,2129.6,2127.6,0.06677478]
[1770658793631,0.1401807,2129.6,2128.0,0.30034508]
[1770658793828,0.1401807,2129.6,2128.3,0.1024]
[1770658793829,1.31411132,2129.6,2128.3,0.1024]
[1770658794282,0.1401807,2129.6,2128.0,0.30034508]
[1770658794563,0.1401807,2129.6,2128.4,0.06677478]
[1770658794926,1.31413223,2129.6,2128.4,0.06677478]
[1770658795344,0.92508713,2129.5,2128.2,1.8]
[1770658795665,0.92508713,2129.5,2128.4,1.17455504]
[1770658796241,0.92508713,2129.5,2128.3,1.17462289]
[1770658796538,1.31413223,2129.6,2128.4,1.1745877]
[1770658796744,0.99186191,2129.5,2126.5,2.58481843]
[1770658796931,0.92508713,2129.2,2127.3,0.06677478]
[1770658797131,0.92508713,2129.2,2127.5,1.17505201]
[1770658797357,0.92508713,2129.0,2127.4,4.70045233]
[1770658797933,0.92508713,2129.0,2126.9,0.16917478]
[1770658798133,0.92508713,2128.8,2127.3,1.17519158]
[1770658799359,1.1744257,2128.7,2127.3,0.06677478]
[1770658800051,1.1744257,2128.7,2127.5,1.8]
[1770658800258,1.1744257,2128.7,2127.3,0.06677478]
[1770658800638,0.92508713,2128.6,2127.2,4.70079443]
[1770658801567,0.92508713,2128.4,2127.1,1.17530692]
[1770658801770,1.17453605,2128.5,2127.2,0.06677478]
[1770658801943,1.17453605,2128.5,2127.1,1.17530692]
[1770658802343,2.09962318,2128.5,2127.1,1.17530692]
[1770658802670,0.92508713,2128.4,2127.1,1.17530692]
[1770658802868,0.92508713,2128.4,2127.0,1.17535171]
[1770658803074,0.92508713,2128.4,2127.1,1.17530137]
[1770658803640,0.92508713,2128.2,2126.7,4.70209679]
[1770658804868,0.92508713,2127.8,2126.6,1.17556816]
[1770658805361,0.92508713,2127.8,2126.9,0.001]
[1770658805567,1.17497767,2127.7,2126.9,0.001]
[1770658805865,2.1000648,2127.7,2126.9,0.001]
[1770658806090,0.92508713,2127.6,2126.9,0.001]
[1770658806666,0.92508713,2127.6,2126.6,0.001]
[1770658807782,1.17508813,2127.5,2126.6,0.001]
[1770658808080,0.92458713,2127.4,2126.5,0.001]
[1770658808390,1.17508813,2127.5,2126.5,0.001]
[1770658809489,0.92458713,2127.4,2126.5,0.001]
[1770658809776,0.92458713,2127.0,2126.3,0.001]
[1770658809978,3.284,2126.9,2126.3,0.001]
[1770658810986,1.1751986,2127.3,2126.3,0.001]
[1770658813598,0.92458713,2127.2,2126.3,0.001]
[1770658813764,1.1753091,2127.1,2126.3,0.001]
[1770658815295,0.92458713,2127.0,2126.3,0.001]
[1770658815501,1.65169498,2126.8,2125.8,0.001]
[1770658815888,2.82722514,2126.7,2125.8,0.001]
[1770658816100,1.65169498,2126.6,2125.8,0.001]
[1770658817894,1.17564072,2126.5,2125.8,0.001]
[1770658818096,1.17541962,2126.9,2125.8,0.001]
[1770658819556,1.82870918,2126.8,2125.8,0.001]
[1770658819845,1.82870918,2126.8,2126.5,0.001]
[1770658820143,1.17553016,2126.7,2125.8,0.001]
[1770658820328,3.00423934,2126.7,2125.8,0.001]
[1770658820644,3.285,2126.6,2125.8,0.001]
[1770658822153,1.17564072,2126.5,2125.8,0.001]
[1770658823832,1.82870918,2127.1,2125.8,0.001]
[1770658823833,3.00407354,2127.1,2125.8,0.001]
[1770658824058,4.700826,2127.3,2125.8,0.001]
[1770658824341,7.985826,2127.3,2125.8,0.001]
[1770658825343,7.985826,2127.3,2125.9,0.06677478]
[1770658825817,1.82870918,2127.2,2125.8,0.001]
[1770658826018,3.00401828,2127.1,2125.8,0.001]
[1770658826235,1.1753091,2127.1,2125.8,0.001]
[1770658826648,0.002,2127.4,2126.2,1.77887437]
[1770658827153,1.17714784,2127.4,2126.2,1.77887437]
[1770658827329,0.002,2127.4,2126.2,1.77887437]
[1770658827532,1.17714734,2127.4,2126.2,1.71209959]
[1770658827834,0.002,2127.4,2126.2,1.71209959]
[1770658828033,0.002,2127.4,2126.3,1.24252608]
[1770658828847,0.002,2127.4,2126.3,1.1757513]
[1770658829036,1.83070918,2127.4,2126.0,1.17588894]
[1770658829240,0.002,2127.4,2126.2,1.1758045]
[1770658830047,1.17714336,2127.4,2126.0,4.77043542]
[1770658830443,0.002,2127.4,2126.2,0.06677478]
[1770658830839,0.002,2128.5,2127.3,0.06677478]
[1770658831052,0.003,2129.5,2127.9,1.77887437]
[1770658831383,12.03801029,2129.2,2127.4,1.71209959]
[1770658831668,0.06677478,2129.1,2127.0,1.77887437]
[1770658831841,10.27607589,2129.3,2127.2,0.06677478]
[1770658831842,1.81598404,2129.0,2127.2,0.06677478]
[1770658832046,1.17431537,2128.9,2127.5,1.8]
[1770658832765,1.17403963,2129.4,2127.8,0.06677478]
[1770658833279,1.17403963,2129.4,2127.9,0.06677478]
[1770658833435,4.69915854,2129.5,2128.1,0.06677478]
[1770658833436,1.17698655,2129.5,2128.1,0.06677478]
[1770658833637,0.003,2129.5,2128.3,1.77887437]
[1770658833871,1.17699855,2129.5,2128.3,1.77887437]
[1770658834074,1.17699855,2129.5,2128.4,1.17459124]
[1770658834236,0.003,2129.5,2128.4,1.17459124]
[1770658835767,1.83170918,2129.5,2128.2,4.45967006]
[1770658835971,1.83170918,2129.5,2128.2,4.45965986]
[1770658836141,1.82870918,2129.3,2127.9,4.76610154]
[1770658836344,1.82870918,2129.3,2128.1,1.17472745]
[1770658836541,1.82870918,2129.3,2128.0,1.1747697]
[1770658836843,1.82870918,2129.3,2127.6,4.76687968]
[1770658837184,1.82870918,2129.1,2127.7,1.17495199]
[1770658837348,1.82870918,2129.1,2127.5,1.24181435]
[1770658837857,1.82870918,2128.6,2127.2,1.17522737]
[1770658838057,1.17453605,2128.5,2127.3,1.24191814]
[1770658838256,1.17453605,2128.5,2127.5,0.06677478]
[1770658838458,1.17409477,2129.3,2127.9,0.06677478]
[1770658838667,1.17409477,2129.3,2127.7,0.06677478]
[1770658838668,1.82870918,2129.2,2127.7,0.06677478]
[1770658839258,1.17409477,2129.3,2127.7,0.06677478]
[1770658839558,1.82870918,2129.2,2127.7,0.06677478]
[1770658839759,1.82870918,2129.2,2127.5,0.06677478]
[1770658839959,1.89548396,2129.2,2127.4,1.17514336]
[1770658840160,1.82870918,2129.0,2127.4,1.17514336]
[1770658840837,1.82870918,2129.0,2127.5,0.06677478]
[1770658841742,4.69622637,2129.4,2128.1,0.06677478]
[1770658841743,1.17403963,2129.4,2128.1,0.06677478]
[1770658841944,1.17702205,2129.5,2128.3,0.06677478]
[1770658842161,1.17702205,2129.5,2128.5,0.06677478]
[1770658842749,0.003,2129.5,2128.5,0.06677478]
[1770658843151,0.003,2129.5,2128.7,0.06677478]
[1770658843790,0.003,2129.5,2128.8,0.06677478]
[1770658844075,0.003,2129.5,2129.0,0.06677478]
[1770658844279,0.003,2129.5,2129.0,1.17425507]
[1770658844571,0.003,2129.5,2128.9,1.17426389]
[1770658844745,0.003,2129.5,2129.0,1.17425485]
[1770658844945,0.12103727,2129.9,2129.1,1.71209959]
[1770658845145,0.00579894,2131.7,2129.1,1.71209959]
[1770658845146,1.17862686,2131.7,2130.3,0.06677478]
[1770658845376,4.69131875,2131.6,2129.7,2.32370642]
[1770658845564,7.1100157,2131.6,2130.0,0.06677478]
[1770658845878,7.1100157,2131.6,2129.9,0.06677478]
[1770658846078,4.69131875,2131.6,2130.5,0.06677478]
[1770658846384,0.00579894,2131.7,2130.6,3.34977478]
[1770658846681,0.00579894,2131.7,2131.3,0.06677478]
[1770658846870,0.00579894,2131.7,2130.8,0.06677478]
[1770658847069,0.00579894,2131.7,2131.0,0.06677478]
[1770658847270,0.00579894,2131.7,2130.5,1.24019092]
[1770658847483,0.00579894,2131.7,2131.1,0.06677478]
[1770658847882,0.00579894,2131.7,2131.3,0.06677478]
[1770658848087,1.17233294,2132.5,2131.3,0.06677478]
[1770658848291,5.68829809,2133.0,2131.0,0.06677478]
[1770658848292,2.41869695,2132.8,2131.0,0.06677478]
[1770658848508,2.41869695,2132.3,2131.0,1.17314684]
[1770658848792,2.41869695,2131.8,2130.1,0.06677478]
[1770658848980,2.41869695,2132.3,2130.5,4.76047249]
[1770658849290,2.41869695,2132.3,2131.1,1.1730733]
[1770658849475,2.41869695,2132.3,2131.0,4.69258835]
[1770658849791,3.281,2132.7,2130.5,1.17342309]
[1770658849792,2.41869695,2132.1,2130.5,1.17342309]
[1770658849973,2.41869695,2131.7,2129.9,1.17372816]
[1770658850175,1.17293797,2131.4,2129.7,1.17387425]
[1770658850356,2.41869695,2131.1,2129.2,8.04423287]
[1770658850562,2.41869695,2131.1,2129.6,1.17390883]
[1770658851072,2.41869695,2130.9,2129.0,0.06677478]
[1770658851402,1.17293797,2131.4,2129.6,1.24069047]
[1770658851563,2.41869695,2131.3,2129.6,1.24069047]
[1770658851971,2.41869695,2131.3,2129.6,1.24070044]
[1770658852467,1.17304804,2131.2,2129.6,1.24070044]
[1770658852678,2.41869695,2131.1,2129.6,1.17392679]
[1770658852887,2.41869695,2131.1,2129.2,0.06677478]
[1770658853186,2.41869695,2131.1,2129.6,1.24069675]
[1770658853495,2.41869695,2131.1,2129.4,0.06677478]
[1770658853787,2.41869695,2131.1,2129.5,1.17394365]
[1770658853993,2.41869695,2131.1,2129.6,1.17392927]
[1770658854413,1.17315814,2131.0,2130.0,0.06677478]
[1770658854687,1.17315814,2131.0,2129.5,4.69576624]
[1770658854883,2.41869695,2130.9,2129.4,1.17400065]
[1770658855086,2.41869695,2130.9,2129.4,1.24077543]
[1770658855263,2.48547173,2130.9,2129.2,0.06677478]
[1770658855462,2.48547173,2130.9,2129.4,1.24080103]
[1770658855463,2.41869695,2130.9,2129.4,1.24080103]
[1770658855664,1.17315814,2131.0,2129.8,0.06677478]
[1770658855865,4.69216802,2131.3,2130.2,0.06677478]
[1770658856400,1.172993,2131.4,2130.3,1.17354363]
[1770658856599,1.172993,2131.4,2130.3,1.12354363]
[1770658856802,1.172993,2131.4,2130.2,1.24035292]
[1770658857168,2.41869695,2131.2,2129.4,0.06677478]
[1770658857576,3.28,2131.2,2129.8,0.06677478]
[1770658857785,2.41869695,2131.1,2129.9,1.17373028]
[1770658857981,2.41869695,2131.1,2129.9,1.17373236]
[1770658858278,2.41869695,2131.1,2129.7,1.17383079]
[1770658858611,1.17315814,2131.0,2129.8,0.06677478]
[1770658858806,3.59185509,2131.0,2129.6,0.06677478]
[1770658858996,3.59185509,2131.0,2129.5,1.17394305]
[1770658859309,3.59185509,2131.0,2129.6,1.24069181]
[1770658859984,3.59185509,2131.0,2129.8,0.06677478]
[1770658860168,3.59185509,2131.0,2129.6,1.24069181]
[1770658860368,3.5919652,2130.8,2129.4,0.0011]
[1770658860610,1.17326825,2130.8,2129.5,0.06677478]
[1770658860790,1.1724429,2132.4,2131.1,0.7724976]
[1770658860971,7.1086885,2132.3,2130.6,0.06677478]
[1770658861175,1.19864364,2132.2,2130.9,0.06677478]
[1770658861392,3.28,2132.2,2130.8,0.06677478]
[1770658861594,7.1086885,2132.3,2131.2,0.06677478]
[1770658861792,4.68999155,2132.3,2130.6,0.06677478]
[1770658862080,4.68999155,2132.3,2131.0,0.06677478]
[1770658862284,1.17216804,2132.8,2131.4,0.06677478]
[1770658862482,0.06677478,2132.3,2130.5,4.69357798]
[1770658862791,1.17227797,2132.6,2131.0,1.17312622]
[1770658862978,1.17227797,2132.6,2130.2,7.01793171]
[1770658862979,0.06677478,2132.3,2130.2,7.01793171]
[1770658863169,0.06677478,2131.8,2129.7,2.32370642]
[1770658863373,0.06677478,2131.9,2130.2,1.1735645]
[1770658863574,2.41869695,2131.9,2130.4,4.69394382]
[1770658863798,13.48830111,2132.3,2130.1,4.69453737]
[1770658864017,2.41869695,2131.7,2129.6,5.6704812]
[1770658864205,2.41869695,2131.6,2130.3,1.17351753]
[1770658864401,3.59130482,2132.0,2129.9,4.69504587]
[1770658864606,3.59130482,2132.0,2130.3,0.06677478]
[1770658864789,1.17233294,2132.5,2130.9,0.06677478]
[1770658864989,2.41869695,2132.4,2130.7,0.06677478]
[1770658865211,2.41869695,2132.2,2130.4,0.06677478]
[1770658865394,2.41869695,2132.2,2130.6,0.06677478]
[1770658865606,2.41869695,2132.2,2131.1,0.06677478]
[1770658866313,2.41869695,2132.2,2130.8,0.06677478]
[1770658866619,1.17255288,2132.1,2130.9,1.17321319]
[1770658866819,1.17255288,2132.1,2131.0,0.06677478]
[1770658867115,1.17255288,2132.1,2131.2,0.06677478]
[1770658868197,1.17248408,2132.3,2131.2,0.06677478]
[1770658868518,1.17248408,2132.3,2131.0,1.23989809]
[1770658868720,1.17248408,2132.3,2131.0,1.23993001]
[1770658868897,3.59118103,2132.3,2131.0,1.23993001]
[1770658869220,1.17214099,2132.9,2131.6,0.06677478]
[1770658869531,4.68733854,2133.5,2131.6,0.06677478]
[1770658869532,0.1401807,2133.8,2132.6,0.06677478]
[1770658869829,0.1401807,2133.8,2133.4,0.2449375]
[1770658869993,1.31180286,2133.8,2133.4,0.2449375]
[1770658870193,1.17162216,2133.8,2131.6,0.06677478]
[1770658870391,1.17162216,2133.8,2132.6,0.06677478]
[1770658870599,1.17162216,2133.8,2132.7,0.06677478]
[1770658870803,1.17162216,2133.8,2132.8,0.06677478]
[1770658870998,1.17162216,2133.8,2132.9,0.06677478]
[1770658871224,1.25836466,2133.8,2132.9,0.06677478]
[1770658871431,0.0867425,2133.8,2132.6,1.1722653]
[1770658871621,0.0867425,2133.8,2132.7,0.06677478]
[1770658871823,10.27607589,2133.4,2131.2,0.06677478]
[1770658872024,2.41869695,2133.6,2132.0,0.06677478]
[1770658872205,2.41869695,2133.6,2131.6,0.06677478]
[1770658872529,2.41869695,2133.4,2132.1,0.06677478]
[1770658872729,2.41869695,2133.4,2132.1,1.23931532]
[1770658872930,2.36869695,2133.4,2131.9,0.06677478]
[1770658873434,2.41869695,2133.1,2131.6,1.23956719]
[1770658873634,2.41869695,2133.1,2131.6,0.06677478]
[1770658873808,2.41869695,2133.1,2131.6,1.23956679]
[1770658874131,2.41869695,2133.1,2131.5,1.17287481]
[1770658874308,2.41869695,2133.1,2131.4,1.23967981]
[1770658874509,2.41869695,2132.9,2131.4,1.23967995]
[1770658874733,2.41869695,2132.9,2131.2,0.06677478]
[1770658874925,2.41869695,2132.9,2131.2,1.23981292]
[1770658875137,2.41869695,2132.7,2131.1,0.0011]
[1770658875502,2.98290587,2132.6,2131.1,0.0011]
[1770658875715,10.20930111,2132.7,2131.1,0.0011]
[1770658875716,2.98290587,2132.4,2131.1,0.0011]
[1770658875916,3.04968065,2132.4,2131.1,0.0011]
[1770658876103,3.04968065,2132.4,2130.2,4.7611462]
[1770658876104,2.98290587,2132.0,2130.2,1.24033429]
[1770658876311,2.98290587,2132.5,2130.8,0.06677478]
[1770658876507,1.1724429,2132.3,2131.1,0.06677478]
[1770658876747,2.98290587,2132.2,2130.5,0.06677478]
[1770658877035,2.98290587,2132.2,2130.9,0.06677478]
[1770658877240,6.25990587,2132.2,2130.9,0.06677478]
[1770658877440,6.25990587,2132.2,2130.9,1.23997916]
[1770658877635,2.98290587,2132.1,2130.7,0.06677478]
[1770658877838,2.98290587,2132.1,2130.5,0.06677478]
[1770658878137,2.98290587,2132.1,2130.6,1.17336669]
[1770658878338,1.1724429,2132.3,2131.1,1.23987569]
[1770658878511,4.6897716,2132.4,2130.9,0.06677478]
[1770658878711,2.98290587,2132.3,2130.8,1.17322725]
[1770658879141,2.98290587,2132.3,2130.8,1.17324382]
[1770658879325,2.98290587,2132.3,2130.9,0.06677478]
[1770658879530,3.10227502,2131.8,2129.8,3.08522061]
[1770658879732,3.10227502,2131.7,2130.3,0.06677478]
[1770658879917,3.10227502,2131.7,2130.3,1.2403157]
[1770658880118,3.10227502,2131.7,2130.2,1.17358769]
[1770658880313,3.10227502,2131.7,2130.2,1.17356205]
[1770658880511,3.10227502,2131.7,2130.1,4.76135375]
[1770658880512,4.27510294,2131.6,2130.1,0.06677478]
[1770658880714,3.10227502,2131.3,2129.4,0.06787478]
[1770658880911,10.27607589,2131.4,2129.4,0.0011]
[1770658880912,3.10227502,2130.9,2129.4,0.0011]
[1770658881137,3.10227502,2130.8,2129.4,1.17509935]
[1770658881339,3.1690498,2130.8,2129.4,0.0011]
[1770658881647,3.10227502,2129.9,2128.7,0.06677478]
[1770658881822,3.10227502,2129.9,2128.6,1.17447633]
[1770658882015,3.10227502,2129.5,2128.0,1.17478435]
[1770658882217,3.10227502,2129.5,2127.7,0.001]
[1770658882218,3.10227502,2129.5,2127.9,1.17484385]
[1770658882442,3.278,2129.4,2128.1,1.17472315]
[1770658882941,1.17409477,2129.3,2128.0,1.24154853]
[1770658883142,0.06677478,2129.1,2127.7,0.001]
[1770658883342,4.69615854,2129.5,2128.0,1.24156396]
[1770658883520,6.38027502,2129.4,2127.8,1.17488421]
[1770658883730,0.06677478,2129.4,2127.8,3.08522061]
[1770658884048,3.10227502,2129.7,2128.1,0.06677478]
[1770658884344,3.10227502,2129.7,2127.7,0.001]
[1770658884345,3.10227502,2129.7,2127.8,1.17486962]
[1770658884563,10.27607589,2129.9,2127.9,1.17483519]
[1770658884564,3.10227502,2129.5,2127.9,1.17483519]
[1770658884732,4.27642493,2129.2,2127.7,0.001]
[1770658884933,1.17414991,2129.2,2128.0,0.06677478]
[1770658885121,3.1690498,2129.1,2127.7,0.001]
[1770658885549,3.1690498,2129.1,2128.2,0.0011]
[1770658885841,11.38345102,2129.2,2128.2,0.0011]
[1770658885842,1.17534991,2129.2,2128.2,0.0011]
[1770658886855,3.10347502,2129.2,2128.2,0.0011]
[1770658887870,3.10347502,2129.2,2128.5,0.06677478]
[1770658887871,0.0012,2129.2,2128.5,0.06677478]
[1770658888463,0.0012,2129.2,2128.3,0.06677478]
[1770658888956,0.0012,2129.2,2128.4,1.17459124]
[1770658889629,1.17370892,2130.0,2128.7,0.06677478]
[1770658890559,1.17370892,2130.0,2128.5,0.06677478]
[1770658890761,1.17370892,2130.0,2128.4,1.17459124]
[1770658890762,1.2404837,2130.0,2128.4,1.17459124]
[1770658890976,4.69483568,2130.1,2128.3,4.69836496]
[1770658891267,0.06677478,2129.9,2128.3,4.69836496]
[1770658891444,7.86388548,2130.1,2128.3,4.69836496]
[1770658891642,0.06677478,2129.7,2128.2,1.1757953]
[1770658891854,3.1690498,2129.9,2128.2,1.1757953]
[1770658892045,3.10227502,2129.9,2128.2,1.1757953]
[1770658892563,0.06677478,2129.2,2128.2,0.0011]
[1770658892769,3.28,2129.3,2128.2,1.17578586]
[1770658892966,1.17414991,2129.2,2128.2,0.0011]
[1770658893670,4.69439489,2130.4,2128.3,3.15199539]
[1770658893840,4.69439489,2130.4,2128.5,3.15199539]
[1770658894040,0.06677478,2130.3,2128.5,3.08522061]
[1770658894453,4.69439489,2130.4,2128.5,3.08522061]
[1770658894655,1.17354363,2130.5,2128.6,3.15199539]
[1770658895167,0.06677478,2130.4,2128.7,1.1744257]
[1770658895751,1.17354363,2130.5,2128.7,1.1744257]
[1770658896669,1.17354363,2130.5,2128.6,1.17447717]
[1770658896670,0.06677478,2129.8,2128.6,1.17447717]
[1770658896968,3.281,2130.1,2128.6,1.17447717]
[1770658897163,1.17370892,2130.0,2128.3,7.78314412]
[1770658897370,1.17370892,2130.0,2128.4,0.06677478]
[1770658897576,1.17370892,2130.0,2128.4,3.15199539]
[1770658898546,3.1690498,2129.7,2128.2,1.17579462]
[1770658898738,1.17370892,2130.0,2128.2,4.26101523]
[1770658899347,3.1690498,2129.9,2128.2,1.17579462]
[1770658899548,3.1690498,2129.7,2128.2,1.17579462]